Cogmind - Beta 10.1 @@@ ROGUE MODE // 2020.10.28 @ 00:18:02 Player: Atherys Result: Destroyed by G-47 Trooper with Particle Gun Performance ------------- Evolutions (0) 0 Regions Visited (1) 200 Robots Destroyed (29) 145 Value Destroyed (680) 680 Prototype IDs (2) 40 Alien Tech Used (0) 0 Bonus (0) 0 TOTAL SCORE: 1065 Bonus ------- None Cogmind --------- Core Integrity 0/250 Matter 278/300 Energy 86/100 System Corruption 0% Temperature Cool (11) Movement Rolling (90) Location -10/Materials Parts ------- > --- POWER (1) -------- (None) > --- PROPULSION (2) --- Armored Wheel Armored Wheel > --- UTILITY (2) ------ Large Storage Unit > --- WEAPON (2) ------- EM Shotgun Light Cannon > --- INVENTORY (10) --- Light Nuclear Core Armored Wheel Armored Wheel Improved Heat Sink Mining Laser Peak State ------------ > --- POWER ------------ Light Nuclear Core > --- PROPULSION ------- Armored Wheel Armored Wheel > --- UTILITY ---------- Large Storage Unit Improved Terrain Scanner > --- WEAPON ----------- EM Shotgun EM Shotgun > --- INVENTORY -------- Light Nuclear Core Armored Wheel Armored Wheel Improved Heat Sink EM Shotgun Mining Laser [Rating: 15] Favorites ----------- Power Ion Engine Engine Ion Engine Power Core Light Nuclear Core Propulsion Aluminum Leg Leg Aluminum Leg Wheel Armored Wheel Utility Large Storage Unit Device Improved Terrain Scanner Storage Large Storage Unit Weapon EM Shotgun Energy Gun EM Shotgun Ballistic Gun Light Assault Rifle Ballistic Cannon Light Cannon Build | -11 -10 ------- Run | Scr Mat Slots Evolved . | . . Power . | . . Propulsion . | . . Utility . | . . Weapon . | . . Parts Attached 20 | 7 13 Power 3 | 1 2 Engine 1 | 1 . Core 2 | . 2 Reactor . | . . Propulsion 4 | 2 2 Treads . | . . Leg 2 | 2 . Wheel 2 | . 2 Hover . | . . Flight . | . . Utility 3 | 2 1 Device 1 | 1 . Storage 2 | 1 1 Processor . | . . Hackware . | . . Protection . | . . Artifact . | . . Weapon 10 | 2 8 Energy Gun 8 | 1 7 Energy Cannon . | . . Ballistic Gun 1 | 1 . Ballistic Cannon 1 | . 1 Launcher . | . . Special Weapon . | . . Impact Weapon . | . . Slashing Weapon . | . . Piercing Weapon . | . . Special Melee Weapon . | . . Unidentified Prototypes . | . . Parts Lost 9 | . 9 Power 3 | . 3 Propulsion . | . . Utility 1 | . 1 Weapon 5 | . 5 Highest Loss Streak 2 | . 2 Average Slot Usage (%) 91 | . 91 Engine 8 | . 8 Core 4 | . 4 Leg 15 | . 15 Wheel 12 | . 12 Device 12 | . 12 Storage 14 | . 14 Energy Gun 18 | . 18 Ballistic Gun 4 | . 4 Naked Turns . | . . Heaviest Build 28 | 13 28 Greatest Support 24 | 20 24 Greatest Overweight (x) 8 | . 8 Average Overweight (x) . | . . Largest Inventory Capacity 10 | 6 10 Average Capacity 9 | 4 9 Most Carried 7 | 2 7 Average Carried 3 | . 4 Final Capacity 10 | 6 10 Final Carried 5 | 1 5 Class Distribution -------------------- 100% | Mutant Dominant Class ---------------- Mutant | -10/Materials Resources | -11 -10 ----------- Run | Scr Mat Matter Collected 396 | 199 197 Remotely . | . . Salvage Created 975 | 172 803 Parts 69 | 9 60 Haulers Intercepted . | . . Recyclers Shooed 1 | . 1 Parts Field Recycled . | . . Retrieved Matter . | . . Parts Self-Destructed . | . . Prevented . | . . Kills | -11 -10 ------- Run | Scr Mat Combat Hostiles Destroyed 17 | . 17 Guns 16 | . 16 AOE 1 | . 1 Classes Destroyed 7 | 2 5 Builder 1 | . 1 Tunneler 4 | 4 . Recycler 1 | 1 . Operator 3 | . 3 Watcher 3 | . 3 Swarmer 3 | . 3 Grunt 14 | . 14 Best Kill Streak 3 | 3 3 Combat Bots Only 3 | . 3 Max Kills in Single Turn 2 | 2 1 Gunslinging . | . . Exploded 1 | . 1 Melee . | . . Uniques/NPCs Destroyed . | . . Combat | -11 -10 -------- Run | Scr Mat Damage Taken 1084 | 30 1054 Core 256 | . 256 Absorbed by Shields . | . . Core Remaining (%) 100 | 100 . Volleys Fired 108 | 5 103 Largest 2 | 2 2 Hottest 90 | 60 90 Shots Fired 159 | 10 149 Gun 156 | 10 146 Cannon 3 | . 3 Launcher . | . . Special . | . . Kinetic 38 | 5 33 Thermal 31 | . 31 Explosive . | . . Electromagnetic 90 | 5 85 Robot Hit Streak 17 | 2 17 Robot Miss Streak 8 | 2 8 Penetration Max . | . . Secondary Targets 1 | . 1 Max Gunslinging Chain 1 | . 1 Shots Hit Robots 105 | 4 101 Core Hits 56 | 6 50 Critical Hits . | . . Critical Kills . | . . Critical Parts Destroyed . | . . Melee Attacks . | . . Impact . | . . Slashing . | . . Piercing . | . . Sneak Attacks . | . . Combat Hostiles . | . . Follow-up Attacks . | . . Damage Inflicted 1438 | 171 1267 Guns 1188 | 64 1124 Cannons 34 | . 34 Explosions 178 | 107 71 Melee . | . . Ramming 38 | . 38 Kinetic 218 | 9 209 Thermal 389 | 107 282 Explosive . | . . Electromagnetic 793 | 55 738 Impact . | . . Slashing . | . . Piercing . | . . Highest Corruption . | . . Average Corruption . | . . Corruption Purged . | . . Overload Shots . | . . Overflow Damage 7 | . 7 Projectiles . | . . Explosions 7 | . 7 Melee . | . . Knockbacks 1 | . 1 Impact . | . . Kinetic 1 | . 1 Secondary . | . . Self-Inflicted Damage 78 | 31 47 Shots 3 | 1 2 Rammed 4 | . 4 Targets Rammed 7 | . 7 Kicked 3 | . 3 Crushed . | . . Highest Temperature 248 | 40 248 Average Temperature 52 | 20 54 Received Heat Transfer 438 | . 438 Effects 1 | . 1 Interference 1 | . 1 Siege Activations . | . . Robots Corrupted . | . . Combat Hostiles . | . . Parts Fried 3 | . 3 Impact Corruptions . | . . Robots Melted . | . . Combat Hostiles . | . . Parts Melted 2 | . 2 Heat Transferred 625 | 100 525 Parts Sabotaged . | . . Parts Stolen . | . . Parts Stripped . | . . Power Chain Reactions 3 | 1 2 Missiles Intercepted . | . . Alert | -11 -10 ------- Run | Scr Mat Peak Influence 193 | 25 193 Initial 16 | . 16 Average 82 | 10 87 Maximum Alert Level . | . . Low Security (%) 100 | 100 100 Level 1 . | . . Level 2 . | . . Level 3 . | . . Level 4 . | . . Level 5 . | . . High Security . | . . Max Security . | . . Squads Dispatched 4 | . 4 Investigation 1 | . 1 Extermination . | . . Reinforcement 3 | . 3 Assault . | . . Garrison . | . . Intercept . | . . Construction Impeded . | . . Haulers Reinforced . | . . Stealth | -11 -10 --------- Run | Scr Mat Distress Signals . | . . Communications Jammed . | . . Distress Signals . | . . Times Spotted 34 | . 34 Peak Tracking Total 3 | . 3 Tactical Retreats 1 | . 1 Traps | -11 -10 ------- Run | Scr Mat Traps Triggered 2 | . 2 Indirectly . | . . Trap Hack Attempts . | . . Triggered . | . . Disarmed 3 | . 3 Reprogrammed . | . . Reused . | . . Traps Extracted . | . . Installed . | . . Triggered . | . . Machines | -11 -10 ---------- Run | Scr Mat Machines Disabled 1 | . 1 Max in Single Turn 1 | . 1 Machines Sabotaged . | . . Garrisons Compromised . | . . Overloaded Fab Kills . | . . Fab Network Shutdowns . | . . Hacking | -11 -10 --------- Run | Scr Mat Machines Accessed 5 | . 5 Terminals 5 | . 5 Fabricators . | . . Repair Stations . | . . Recycling Units . | . . Scanalyzers . | . . Garrison Access . | . . Total Hacks 18 | . 18 Successful 13 | . 13 Failed 5 | . 5 Catastrophic . | . . Database Lockouts . | . . Manual 8 | . 8 Terminals 18 | . 18 Fabricators . | . . Repair Stations . | . . Recycling Units . | . . Scanalyzers . | . . Garrison Access . | . . Terminal Hacks 8 | . 8 Prototype ID Bank 1 | . 1 Scanalyzer Index 1 | . 1 Locate Traps 1 | . 1 Disarm Traps 1 | . 1 Hauler Manifests 1 | . 1 Registered Prototypes 1 | . 1 Zone Layout 2 | . 2 Fabricator Hacks . | . . Repair Station Hacks . | . . Recycling Unit Hacks . | . . Scanalyzer . | . . Garrison Access Hacks . | . . Unauthorized Hacks 5 | . 5 Terminals 5 | . 5 Botnet 5 | . 5 Fabricators . | . . Repair Stations . | . . Recycling Units . | . . Scanalyzers . | . . Garrison Access . | . . Data Cores Recovered . | . . Used . | . . Hacking Detections 3 | . 3 Full Trace Events . | . . Feedback Events . | . . Feedback Blocked . | . . Robot Schematics Acquired . | . . Robots Built . | . . Matter . | . . Time . | . . Total Robot Build Rating . | . . Part Schematics Acquired . | . . Parts Built . | . . Matter . | . . Time . | . . Total Part Build Rating . | . . Parts Repaired . | . . Time . | . . Parts Recycled . | . . Recycled Matter . | . . Retrieved Matter . | . . Retrieved Components . | . . Parts Scanalyzed . | . . Part Schematics Acquired . | . . Parts Damaged . | . . Bothacking | -11 -10 ------------ Run | Scr Mat Used RIF Installer . | . . Robots Hacked . | . . Non-combat . | . . Combat . | . . Robot Hacks Applied . | . . Relay Couplers Released . | . . Robots Rewired . | . . Allies Hacked . | . . Hacks Repelled . | . . Allies | -11 -10 -------- Run | Scr Mat Total Allies . | . . Largest Group . | . . Highest-Rated Group . | . . Highest-Rated Ally . | . . Total Orders . | . . Ally Attacks . | . . Total Damage . | . . Kills . | . . Allies Corrupted . | . . Allies Melted . | . . Intel | -11 -10 ------- Run | Scr Mat Robot Analysis Total . | . . Derelict Logs Recovered . | . . Drone Launches . | . . Drone Recoveries . | . . Exploration | -11 -10 ------------- Run | Scr Mat Turns Passed 1280 | 74 1206 Spaces Moved 776 | 42 734 Core 5 | 4 1 Treads . | . . Legs 381 | 38 343 Wheels 390 | . 390 Hover . | . . Flight . | . . Fastest Speed 50 | 50 90 Average Speed 121 | 113 121 Slowest Speed 450 | 120 450 Overloaded Moves . | . . Propulsion Burnouts . | . . Robots Hopped . | . . Cave-ins Triggered . | . . Exploration Rate (%) 49 | 3 95 Regions Visited 1 Branch Regions . Pre-discovered Areas . | . . Known Exits Taken . | . . Unknown Exits Taken 1 | 1 . Scrap Searched . | . . Spaces Dug . | . . Terrain Destroyed 10 | 5 5 Melee . | . . Projectile . | . . AOE 10 | 5 5 Terrain Rammed . | . . Walls Destroyed . | . . Machines Disabled . | . . Actions | -11 -10 --------- Run | Scr Mat Total 959 | 57 902 Wait 27 | . 27 Move 775 | 41 734 Hop . | . . Pick Up 13 | 4 9 Fast Attach 10 | 4 6 Attach 8 | 3 5 Detach . | . . Swap 2 | . 2 Drop 6 | . 6 Fire 108 | 5 103 Melee . | . . Ram 3 | . 3 Kick 4 | . 4 Crush . | . . Escape Stasis . | . . Rewire 3 | . 3 Trap . | . . Miscellaneous . | . . Route ------- -11/Scrapyard -10/Materials (discovered 4 exits: [*Mat x3] / [*Min]) History --------- Turn | Location | Event 4 | -11/Scrapyard | Discovered new exit (range 16) 75 | -11/Scrapyard | Entered Materials 158 | -10/Materials | Discovered new exit (range 14) 315 | -10/Materials | Build established: Mutant 617 | -10/Materials | Discovered new exit (range 6) 898 | -10/Materials | Core integrity fell below 50% 1095 | -10/Materials | Discovered new exit (range 13) 1204 | -10/Materials | Core integrity fell below 20% 1267 | -10/Materials | Discovered new exit (range 7) 1281 | -10/Materials | Destroyed by G-47 Trooper with Particle Gun Last Messages --------------- >>Index(Scanalyzers) No scanalyzers found. >>Trojan(Botnet) Trojan loaded successfully. Testing... Terminal linked with 4 systems. Awaiting botnet instructions. 01116_ Triggered Explosive Trap. 01116_ An explosion rips through the floor. 01116_ Imp. Terrain Scanner destroyed. 01205_ EM Shotgun destroyed. 01210_ S-10 Pest destroyed. 01212_ Lgt. Nuclear Core destroyed. 01216_ S-10 Pest destroyed. 01250_ Acquired Lgt. Cannon. 01267_ EXIT=FOUND 01269_ Door malfunctions. 01275_ G-34 Mercenary destroyed. 01275_ Door malfunctions. 01279_ G-47 Trooper knocked back. Map ----- +----------------------------------------------------+ | | | | | | | | | | | | | | | | | | | | | | | | | | | ????????????????????????????????????????????? | | ????????????????????????????????????????????? | | ????????????????????????????????????????????? | | ????????????????????????????????????????????? | | ???????????????????????????##########???????? | | ?????????#?????????######### #??????? | | ?????????#?#???????# # #??????? | | ???????????# ??????# # """ #??????? | | ?#??########? ????#! !!! # """ #??????? | | ????# ####/#### !!! # """ #??????? | | ????# # g# !!! # ]] #??????? | | ????# # < */% # ] [ #??????? | | ????# # #@ # #??#???? | | ????#!! ##### # """ #####+#####??????? | | #???#! #???# ?# """ #??# ########### | | ????####+###???# ?# """ #### # # | | ?????# #???# ??# + # # | | ?#???# #???# ??############ + # | | ?????# #???#???#?#????????# # # | | ?????# #?????????#?#??????# ########### | | ?????# #??#?? !########### #????????#? | | ?????### ###????? #?#?#?#???? | | ????#??# #??????? ########### | | ######## ##???? % | | # # #????? ?? ############+############ | | # # #?????#?????#???# #???#???##?# | | # "" + #?########??????# [% ##????##???? | | # "T # #? #????### = #????#?#?#?? | | # "" # # "" #??????# #?#??#??#### | | # # # "Y #??????# """ #?#??#??# T | | ######## # "" #??????# """""#???????# | | ######## # #?##???#*%"""""##?#????# | | # # # """ #??????#[["""""#????#?## | | # # # """ #???#??# %=""" ######### | | # # # """ #?????## #"""""""# | | #!!! # # ######## #" !"| "# | | #!!! +=#######+## #######+## ##+# | +----------------------------------------------------+ Best States ------------- Heat Dissipation 25 Energy Generation 14 Energy Capacity 250 Matter Stores 300 Matter Capacity 300 Sight Range 16 Terrain Scan Range 16 Terrain Scan Density 10 Evasion (%) 42 Item Schematics ----------------- None Robot Schematics ------------------ None Fabricated ------------ Nothing Alien Tech Used ----------------- None Achievements -------------- None Challenges ------------ None Game ------ Seed PoweredRocketAxe Manual? 0 Play Time 00:13:28 Cumulative 17.7 hours Start 2020.10.28 @ 00:06:27 End 2020.10.28 @ 00:18:02 Sessions 1 Manual Loads 0 Difficulty Rogue Special Mode None Game No. 31 Rogue 31 Adventurer 0 Explorer 0 Win Type - Total 0 Types 0/0/0/0/0/0/0/0/0 Lore% 19 Gallery% 21 Achievement% 19 Wizard Run 0 Options --------- ASCII 0 Keyboard 0 Movement Mouse Keybinds 0 Fullscreen 2 Font 24/Smallcaps Map View 76x50 Tactical HUD 1 Map Filters NONE Filters NONE Steam X RUN: fe807c86-67b2-49cc-b736-063dd2a0a9fb